bitfinex-derivatives/quotes_BTCF0:USTF0_20250411
["timestamp","ask_amount","ask_price","bid_price","bid_amount"]
[1744403631212,0.1827852,84042.0,84041.0,0.03183429]
[1744403631407,0.1827852,84042.0,84041.0,0.15088089]
[1744403631610,0.1827852,84042.0,84041.0,0.03183429]
[1744403634310,0.2595452,84042.0,84041.0,0.03183429]
[1744403636908,0.2595452,84042.0,84041.0,0.03191902]
[1744403641815,0.2595852,84042.0,84041.0,0.03191799]
[1744403643523,0.1827852,84042.0,84041.0,0.15096459]
[1744403643728,0.1508452,84042.0,84041.0,0.24766459]
[1744403643923,0.1508852,84042.0,84041.0,0.24766459]
[1744403644125,0.1508452,84042.0,84041.0,0.24766459]
[1744403644324,0.1508852,84042.0,84041.0,0.24766459]
[1744403646432,0.1508452,84042.0,84041.0,0.24766459]
[1744403646623,0.29366239,84042.0,84041.0,0.24766459]
[1744403648525,0.26186239,84042.0,84041.0,0.24766459]
[1744403649627,0.26182239,84042.0,84041.0,0.24766459]
[1744403649828,0.26186239,84042.0,84041.0,0.24766459]
[1744403650031,0.1190852,84042.0,84041.0,0.24766459]
[1744403652141,0.1190452,84042.0,84041.0,0.24766459]
[1744403652839,0.1190852,84042.0,84041.0,0.24766459]
[1744403654531,0.1190852,84042.0,84041.0,0.24822655]
[1744403654934,4e-05,84042.0,84041.0,0.26040251]
[1744403655137,0.1190452,84042.0,84041.0,0.26040251]
[1744403655338,0.1190852,84042.0,84041.0,0.26040251]
[1744403657035,7.291e-05,84055.0,84045.0,0.05952]
[1744403657241,0.0595155,84052.0,84046.0,0.06267995]
[1744403657449,0.1190367,84048.0,84047.0,0.0490411]
[1744403657743,0.1190367,84048.0,84047.0,0.2006792]
[1744403657939,0.1507367,84048.0,84047.0,0.09727995]
[1744403658142,0.1810367,84048.0,84047.0,0.09691496]
[1744403658549,0.1810367,84048.0,84047.0,0.21595306]
[1744403659642,0.1810367,84048.0,84047.0,0.19947695]
[1744403659848,0.1810367,84048.0,84047.0,0.21597034]
[1744403660047,0.1810367,84048.0,84047.0,0.06473224]
[1744403660237,0.1810367,84048.0,84047.0,0.03213224]
[1744403660441,0.1810367,84048.0,84047.0,0.03213781]
[1744403661046,0.1810367,84048.0,84047.0,0.06513781]
[1744403662945,0.1810367,84048.0,84047.0,0.03213781]
[1744403663343,0.1810367,84048.0,84047.0,0.15117591]
[1744403663943,0.1810367,84048.0,84047.0,0.03213781]
[1744403665553,0.1810367,84048.0,84047.0,0.06243781]
[1744403668255,0.1810367,84048.0,84047.0,0.18147591]
[1744403669454,0.1507367,84048.0,84047.0,0.18147591]
[1744403669653,0.1507367,84048.0,84047.0,0.21177591]
[1744403669855,0.1507767,84048.0,84047.0,0.21177591]
[1744403670055,0.1839767,84048.0,84047.0,0.21177591]
[1744403670450,0.1839767,84048.0,84047.0,0.19527695]
[1744403670645,0.1839767,84048.0,84047.0,0.21179709]
[1744403670849,0.1839767,84048.0,84047.0,0.21179641]
[1744403672448,0.1507767,84048.0,84047.0,0.21179641]
[1744403672648,0.1507367,84048.0,84047.0,0.21179641]
[1744403673550,0.1507767,84048.0,84047.0,0.21179641]
[1744403677857,0.1507767,84048.0,84047.0,0.09275831]
[1744403678062,0.1830767,84048.0,84047.0,0.03215831]
[1744403680658,0.1830767,84048.0,84047.0,0.03164567]
[1744403685163,0.0595226,84042.0,84038.0,0.21356897]
[1744403685368,0.1190494,84039.0,84038.0,0.21356897]
[1744403685664,0.13108146,84039.0,84038.0,0.21356897]
[1744403685869,0.19488146,84039.0,84038.0,0.21356897]
[1744403688576,0.1190565,84034.0,84033.0,0.0327]
[1744403689173,0.1840565,84034.0,84033.0,0.0327]
[1744403690074,0.1190565,84034.0,84033.0,0.1517579]
[1744403690270,0.1785755,84039.0,84038.0,0.1190509]
[1744403690473,0.1785755,84039.0,84033.0,0.0922289]
[1744403690474,0.11910351,84039.0,84036.0,0.1190534]
[1744403690674,0.1190495,84039.0,84038.0,0.1190509]
[1744403690974,0.1190895,84039.0,84038.0,0.1190509]
[1744403691174,0.1190895,84039.0,84038.0,0.1812509]
[1744403695968,0.1190895,84039.0,84038.0,0.0622]
[1744403696171,0.1517895,84039.0,84038.0,0.0622]
[1744403696370,0.1517895,84039.0,84038.0,0.0321]
[1744403696575,0.1831895,84039.0,84038.0,0.0321]
[1744403699772,0.1831895,84039.0,84038.0,0.0321]
[1744403700164,0.1831895,84039.0,84037.0,0.1190518]
[1744403700367,0.1190509,84038.0,84037.0,0.1190518]
[1744403700568,0.1190509,84038.0,84037.0,0.1513518]
[1744403700771,0.1817509,84038.0,84037.0,0.1513518]
[1744403702480,0.1817509,84038.0,84037.0,0.0323]
[1744403702675,0.1817509,84038.0,84031.0,0.60616897]
[1744403702676,0.1190594,84032.0,84031.0,0.57436897]
[1744403702876,0.1190594,84032.0,84031.0,0.69342977]
[1744403703080,0.2152594,84032.0,84031.0,0.57436897]
[1744403703273,0.2152594,84032.0,84031.0,0.69342977]
[1744403703474,0.2152594,84032.0,84031.0,0.57436897]
[1744403704182,0.2152594,84032.0,84031.0,0.3608]
[1744403708182,0.1190608,84031.0,84030.0,0.21356897]
[1744403708589,0.1840608,84031.0,84030.0,0.21356897]
[1744403708785,0.1190622,84030.0,84029.0,0.00476023]
[1744403709378,0.1829622,84030.0,84029.0,0.00476023]
[1744403709582,0.1829622,84030.0,84029.0,0.12382383]
[1744403710087,0.1190622,84030.0,84029.0,0.12382383]
[1744403710296,0.059529,84033.0,84032.0,0.1785854]
[1744403710485,0.059529,84033.0,84032.0,0.2424854]
[1744403710789,0.059529,84033.0,84032.0,0.2750854]
[1744403711091,0.0595272,84036.0,84034.0,0.1785833]
[1744403711285,0.0595272,84036.0,84035.0,0.0653]
[1744403712290,0.0595672,84036.0,84035.0,0.0653]
[1744403712884,0.0595672,84036.0,84035.0,0.1843551]
[1744403717598,0.0910672,84036.0,84035.0,0.1843551]
[1744403722495,0.0910672,84036.0,84035.0,0.0653]
[1744403722696,0.1190565,84034.0,84033.0,0.3608]
[1744403723103,0.1829565,84034.0,84033.0,0.3608]
[1744403725799,0.2596365,84034.0,84033.0,0.3608]
[1744403729496,0.1190608,84031.0,84030.0,0.4798619]
[1744403729891,0.1812608,84031.0,84030.0,0.3608]
[1744403732093,0.1190622,84030.0,84029.0,0.03706023]
[1744403732291,0.1190622,84030.0,84029.0,0.39786023]
[1744403732492,0.1832622,84030.0,84029.0,0.39786023]
[1744403733103,0.1832622,84030.0,84029.0,0.03706023]
[1744403733702,0.1832622,84030.0,84029.0,0.39786023]
[1744403737206,0.1832622,84030.0,84029.0,0.51692383]
[1744403737507,0.1190622,84030.0,84029.0,0.51692383]
[1744403737706,0.10694371,84033.0,84032.0,0.1190594]
[1744403737906,0.22600161,84033.0,84032.0,0.1500594]
[1744403738107,0.22600161,84033.0,84032.0,0.1800594]
[1744403738806,0.22604161,84033.0,84032.0,0.1800594]
[1744403740215,0.22604161,84033.0,84032.0,0.5408594]
[1744403740415,0.1190979,84033.0,84032.0,0.5408594]
[1744403744218,0.1521979,84033.0,84032.0,0.5408594]
[1744403745713,0.1848979,84033.0,84032.0,0.5408594]
[1744403747117,0.1848979,84033.0,84032.0,0.1800594]
[1744403748213,0.1521979,84033.0,84032.0,0.1800594]
[1744403749323,0.1521979,84033.0,84032.0,0.1500594]
[1744403749618,0.1853979,84033.0,84032.0,0.1500594]
[1744403751020,0.0595297,84032.0,84030.0,0.3925]
[1744403751220,0.1816608,84031.0,84030.0,0.3608]
[1744403756123,0.28860451,84031.0,84030.0,0.3608]
[1744403759626,0.28860451,84031.0,84030.0,0.4223]
[1744403760531,0.28864451,84031.0,84030.0,0.3918]
[1744403760931,0.1817008,84031.0,84030.0,0.3918]
[1744403761132,0.1817008,84031.0,84030.0,0.4558]
[1744403761519,0.1495008,84031.0,84030.0,0.5748622]
[1744403761726,0.1494608,84031.0,84030.0,0.5748622]
[1744403761933,4e-05,84031.0,84030.0,0.5748622]
[1744403762134,0.1190608,84031.0,84030.0,0.6343926]
[1744403762626,0.1191008,84031.0,84030.0,0.5153304]
[1744403765132,0.1191008,84031.0,84030.0,0.4558]
[1744403767434,0.1191008,84031.0,84030.0,0.3608]
[1744403767733,0.1190622,84030.0,84029.0,0.2183292]
[1744403767941,0.1509622,84030.0,84029.0,0.2183292]
[1744403768237,0.1509622,84030.0,84029.0,0.00476023]
[1744403770941,0.1509622,84030.0,84029.0,3e-08]
[1744403771128,0.1829622,84030.0,84029.0,3e-08]
[1744403771534,0.19205049,84030.0,84029.0,3e-08]
[1744403772337,0.19205049,84030.0,84029.0,0.01577247]
[1744403773742,0.1829622,84030.0,84029.0,0.01577247]
[1744403774042,0.1829622,84030.0,84029.0,0.03196318]
[1744403774340,0.1830022,84030.0,84029.0,0.03196318]
[1744403774542,0.1191022,84030.0,84029.0,0.03196318]
[1744403774739,0.1190622,84030.0,84029.0,0.15102678]
[1744403774939,0.1191022,84030.0,84029.0,0.15102678]
[1744403775133,0.1190622,84030.0,84029.0,0.21422678]
[1744403775335,0.1191022,84030.0,84029.0,0.21422678]
[1744403775839,0.1191022,84030.0,84029.0,0.21507105]
[1744403776743,4e-05,84030.0,84029.0,0.21507105]
[1744403776943,0.1191022,84030.0,84029.0,0.21507105]
[1744403777135,0.1190622,84030.0,84029.0,0.21507105]
[1744403777530,0.1191022,84030.0,84029.0,0.21507105]
[1744403781744,0.1191022,84030.0,84029.0,0.21481589]
[1744403782245,0.1191022,84030.0,84029.0,0.42819637]
[1744403782547,0.1524022,84030.0,84029.0,0.30913277]
[1744403782749,0.1524022,84030.0,84029.0,0.42819637]
[1744403783249,0.1524022,84030.0,84029.0,0.42818785]
[1744403784847,0.1524022,84030.0,84029.0,0.42811896]
[1744403785850,0.1524022,84030.0,84029.0,0.21473848]
[1744403787749,0.1840022,84030.0,84029.0,0.21473848]
[1744403788550,0.1840022,84030.0,84029.0,0.21469207]
[1744403791051,0.1840022,84030.0,84029.0,0.21466453]
[1744403791346,0.1840022,84030.0,84029.0,0.09560093]
[1744403791552,0.1840022,84030.0,84029.0,0.03240093]
[1744403792244,0.1840022,84030.0,84029.0,0.03235784]
[1744403792542,0.1840022,84030.0,84029.0,0.01577247]
[1744403794262,0.1190693,84025.0,84024.0,0.0001786]
[1744403794447,0.5564693,84025.0,84024.0,0.01658492]
[1744403794955,0.6181693,84025.0,84024.0,0.0001786]
[1744403798858,0.72507166,84025.0,84024.0,0.0001786]
[1744403799758,0.1190877,84012.0,84011.0,0.0306]
[1744403799959,0.1190877,84012.0,84011.0,0.01613645]
[1744403800170,0.2146877,84012.0,84011.0,0.01613645]
[1744403800370,0.1190934,84008.0,84007.0,0.21338048]
[1744403800570,0.1190934,84008.0,84007.0,0.22951768]
[1744403800771,0.1820934,84008.0,84007.0,0.22951768]
[1744403801370,0.1820934,84008.0,84007.0,0.21338048]
[1744403802375,0.1820934,84008.0,84007.0,0.12599508]
[1744403802568,0.1820934,84008.0,83975.0,0.05957]
[1744403802569,0.1191104,83996.0,83975.0,0.05957]
[1744403802763,0.5565504,83996.0,83981.0,0.0308]
[1744403802969,0.5565504,83996.0,83995.0,0.21325972]
[1744403803269,0.1191189,83990.0,83989.0,0.2843463]
[1744403804070,0.1812189,83990.0,83989.0,0.2843463]
[1744403806977,0.1812189,83990.0,83989.0,0.30024891]
[1744403808182,0.1812189,83990.0,83989.0,0.01590261]
[1744403810585,0.5420189,83990.0,83989.0,0.01590261]
[1744403813083,0.6186589,83990.0,83989.0,0.01590261]
[1744403814087,0.1191288,83983.0,83982.0,0.0641]
[1744403814488,0.1818288,83983.0,83982.0,0.0641]
[1744403819292,0.1191302,83982.0,83981.0,0.00017849]
[1744403819686,0.1842302,83982.0,83981.0,0.00017849]
[1744403823801,0.1515302,83982.0,83981.0,0.00017849]
[1744403824100,0.1515302,83982.0,83981.0,0.0170417]
[1744403824101,0.1191302,83982.0,83981.0,0.0170417]
[1744403824705,0.1191702,83982.0,83981.0,0.1361734]
[1744403825103,0.1191702,83982.0,83981.0,0.0170417]
[1744403825501,0.1507702,83982.0,83981.0,0.0170417]
[1744403825902,0.1507702,83982.0,83981.0,0.00017849]
[1744403826400,0.1507702,83982.0,83981.0,0.0163208]
[1744403826805,0.1507702,83982.0,83981.0,0.00017849]
[1744403827307,0.1507702,83982.0,83981.0,0.01614974]
[1744403827511,0.1507702,83982.0,83981.0,0.00017849]
[1744403827805,0.1828702,83982.0,83981.0,0.00017849]
[1744403828503,0.1828702,83982.0,83981.0,9e-08]
[1744403828698,0.5436702,83982.0,83981.0,9e-08]
[1744403828899,0.1191473,83970.0,83969.0,0.0328]
[1744403829300,0.1191515,83967.0,83966.0,0.033]
[1744403829506,0.1191529,83966.0,83965.0,0.07545]
[1744403829709,0.1830529,83966.0,83965.0,0.07545]
[1744403830415,0.5438529,83966.0,83965.0,0.07545]
[1744403833010,0.5117529,83966.0,83965.0,0.07545]
[1744403834216,0.5117929,83966.0,83965.0,0.07545]
[1744403836312,0.11916,83961.0,83960.0,0.0328]
[1744403837110,0.15106,83961.0,83960.0,0.0328]
[1744403837414,0.15106,83961.0,83951.0,0.36556466]
[1744403837415,0.1191728,83952.0,83951.0,0.36556466]
[1744403838113,0.1834728,83952.0,83951.0,0.39636466]
[1744403840622,0.1834728,83952.0,83951.0,0.03556466]
[1744403841421,0.1191728,83952.0,83951.0,0.18563886]
[1744403842022,0.1192128,83952.0,83951.0,0.18563886]
[1744403842621,0.1191728,83952.0,83951.0,0.18563886]
[1744403842821,0.1192128,83952.0,83951.0,0.18563886]
[1744403844725,0.1191728,83952.0,83951.0,0.18563886]
[1744403844926,0.1192128,83952.0,83951.0,0.18563886]
[1744403850427,0.1497128,83952.0,83951.0,0.18563886]
[1744403851237,0.1192128,83952.0,83951.0,0.18563886]
[1744403851931,0.1508128,83952.0,83951.0,0.18563886]
[1744403853233,0.1508128,83952.0,83951.0,0.54643886]
[1744403860638,0.1813128,83952.0,83951.0,0.54643886]
[1744403862343,0.1813128,83952.0,83951.0,0.18563886]
[1744403864944,0.1813128,83952.0,83951.0,0.12393886]
[1744403865446,0.1813128,83952.0,83951.0,0.15573886]
[1744403865643,0.1813128,83952.0,83951.0,0.18623886]
[1744403865946,0.1508128,83952.0,83951.0,0.18623886]
[1744403866142,0.1507728,83952.0,83951.0,0.18623886]
[1744403866447,0.1508128,83952.0,83951.0,0.18623886]
[1744403868543,0.1508128,83952.0,83951.0,0.54703886]
[1744403872049,0.1817128,83952.0,83951.0,0.54703886]
[1744403876951,0.2885469,83952.0,83951.0,0.54703886]
[1744403880248,0.06254,83952.0,83951.0,0.54703886]
[1744403880949,0.1817128,83952.0,83951.0,0.54703886]
[1744403881148,0.1817128,83952.0,83951.0,0.48473886]
[1744403881454,0.2128128,83952.0,83951.0,0.48473886]
[1744403884057,0.2128128,83952.0,83951.0,0.51653886]
[1744403884357,0.2128128,83952.0,83951.0,0.48473886]
[1744403889753,0.2128128,83952.0,83951.0,0.36556466]
[1744403891156,0.2128128,83952.0,83951.0,0.48473886]
[1744403891850,0.2128128,83952.0,83951.0,0.36556466]
[1744403895156,0.2128128,83952.0,83951.0,0.00476466]
[1744403895657,0.2128128,83952.0,83951.0,0.12393886]
[1744403895955,0.2128128,83952.0,83951.0,0.00476466]
[1744403897162,0.2127728,83952.0,83951.0,0.00476466]
[1744403902259,0.2128128,83952.0,83951.0,0.00476466]
[1744403910668,0.31991799,83952.0,83951.0,0.00476466]
[1744403916266,0.28881799,83952.0,83951.0,0.00476466]
[1744403916668,0.28881799,83952.0,83951.0,0.03736466]
[1744403918371,0.1817128,83952.0,83951.0,0.03736466]
[1744403920270,0.1817128,83952.0,83951.0,0.15653886]
[1744403920863,0.1817128,83952.0,83951.0,0.18813886]
[1744403924274,0.1508128,83952.0,83951.0,0.18813886]
[1744403924676,0.1507728,83952.0,83951.0,0.18813886]
[1744403924973,0.1508128,83952.0,83951.0,0.18813886]
[1744403926275,0.1508128,83952.0,83951.0,0.54893886]
[1744403927763,0.1828128,83952.0,83951.0,0.54893886]
[1744403931278,0.1828128,83952.0,83951.0,0.51733886]
[1744403931981,0.1828128,83952.0,83951.0,0.15653886]
[1744403934075,0.1828128,83952.0,83951.0,0.00476466]
[1744403935980,0.1828128,83952.0,83951.0,0.12393886]
[1744403936380,0.32538002,83952.0,83951.0,0.15463886]
[1744403940284,0.1828128,83952.0,83951.0,0.15463886]
[1744403940687,0.1828128,83952.0,83951.0,0.03546466]
[1744403941782,0.1828128,83952.0,83951.0,0.15463886]
[1744403942083,0.14256722,83955.0,83954.0,0.11917]
[1744403942277,0.26173582,83955.0,83954.0,0.47997]
[1744403942685,0.26173582,83955.0,83954.0,0.57407]
[1744403943082,0.29213582,83955.0,83954.0,0.4549]
[1744403943381,0.32423582,83955.0,83954.0,0.47997]
[1744403943579,0.32423582,83955.0,83954.0,0.3608]
[1744403943778,0.32423582,83955.0,83954.0,0.47997]
[1744403945082,0.32423582,83955.0,83954.0,0.51127]
[1744403946689,0.1816686,83955.0,83954.0,0.51127]
[1744403947091,0.1816686,83955.0,83954.0,0.54367]
[1744403947888,0.1816686,83955.0,83954.0,0.47997]
[1744403948388,0.1816686,83955.0,83954.0,0.11917]
[1744403950588,0.1191714,83953.0,83952.0,0.21405596]
[1744403950988,0.1810714,83953.0,83952.0,0.21405596]
[1744403951586,0.1191827,83945.0,83944.0,0.28521359]
[1744403951784,0.4799827,83945.0,83944.0,0.28521359]
[1744403951985,0.5737827,83945.0,83944.0,0.28521359]
[1744403952289,0.1191984,83934.0,83933.0,0.35437323]
[1744403952491,0.4799984,83934.0,83933.0,0.35437323]
[1744403952987,0.5426984,83934.0,83933.0,0.35437323]
[1744403953383,0.5426984,83934.0,83933.0,0.35441323]
[1744403955694,0.5426984,83934.0,83933.0,4e-05]
[1744403956194,0.0595999,83933.0,83925.0,0.00494484]
[1744403956385,0.1192097,83926.0,83925.0,0.00518697]
[1744403956587,0.1192097,83926.0,83925.0,0.00494484]
[1744403956798,0.2146097,83926.0,83925.0,0.00498484]
[1744403957693,0.2146097,83926.0,83925.0,0.00494484]
[1744403957993,0.2146097,83926.0,83925.0,0.00498484]
[1744403961997,0.3454,83926.0,83900.0,0.1]
[1744403962298,0.1192453,83901.0,83900.0,0.1]
[1744403963089,0.1824453,83901.0,83900.0,0.10004]
[1744403964600,0.19429662,83901.0,83900.0,0.10004]
[1744403965101,0.1192566,83893.0,83892.0,0.00011955]
[1744403965305,0.1192595,83891.0,83890.0,0.4258659]
[1744403965600,0.3608,83893.0,83883.0,0.37713368]
[1744403965601,0.1192694,83884.0,83883.0,0.37713368]
[1744403966297,0.1192723,83882.0,83881.0,5.4e-05]
[1744403966894,0.1844723,83882.0,83881.0,5.4e-05]
[1744403967107,0.1192737,83881.0,83880.0,0.119275]
[1744403967602,0.1842737,83881.0,83880.0,0.119275]
[1744403967805,0.1192794,83877.0,83876.0,0.1820796]
[1744403967996,0.1192794,83877.0,83876.0,0.0628]
[1744403968192,0.1192794,83877.0,83868.0,0.01179373]
[1744403968193,0.6765,83877.0,83868.0,0.01179373]
[1744403968392,0.6765,83877.0,83844.0,0.3608]
[1744403968393,0.3608,83869.0,83844.0,0.3608]
[1744403968602,0.3608,83862.0,83860.0,5.4e-05]
[1744403968803,0.033,83868.0,83860.0,0.060654]
[1744403968804,0.0596468,83867.0,83860.0,0.060654]
[1744403969100,0.4801021,83861.0,83860.0,0.060654]
[1744403970293,0.3608,83861.0,83860.0,0.4299576]
[1744403971900,0.3608,83861.0,83860.0,0.4299036]
[1744403972101,0.1193004,83863.0,83862.0,0.1193007]
[1744403972402,0.0596484,83865.0,83864.0,0.1192979]
[1744403972605,0.4204466,83868.0,83867.0,0.1192936]
[1744403972994,0.1192936,83867.0,83866.0,0.0617]
[1744403973200,0.1192936,83867.0,83866.0,0.0946]
[1744403973710,0.1192936,83867.0,83866.0,0.213895]
[1744403974206,0.1192936,83867.0,83866.0,0.09464]
[1744403974503,0.1503936,83867.0,83866.0,0.09464]
[1744403974907,0.1503936,83867.0,83866.0,0.213935]
[1744403975506,0.1192936,83867.0,83866.0,0.213935]
[1744403976412,0.4800936,83867.0,83866.0,0.213935]
[1744403977005,0.4800936,83867.0,83866.0,0.213895]
[1744403977909,0.4800936,83867.0,83866.0,0.21632796]
[1744403978607,0.1193064,83858.0,83848.0,0.00904823]
[1744403978802,0.4801064,83858.0,83854.0,0.0597289]
[1744403979108,0.5120064,83858.0,83856.0,0.1193088]
[1744403979306,0.5120064,83858.0,83857.0,0.5346078]
[1744403979907,0.4801064,83858.0,83857.0,0.5647478]
[1744403980108,0.4801064,83858.0,83857.0,0.5959478]
[1744403982010,0.5102064,83858.0,83857.0,0.5959078]
[1744403982204,0.5102064,83858.0,83857.0,0.1806078]
[1744403983917,0.5427064,83858.0,83857.0,0.1806078]
[1744403985405,0.3608,83858.0,83857.0,0.1806078]
[1744403985605,0.3608,83867.0,83866.0,0.119295]
[1744403986010,0.4800936,83867.0,83866.0,0.213395]
[1744403987703,0.4800936,83867.0,83866.0,0.149795]
[1744403987909,0.5131936,83867.0,83866.0,0.149795]
[1744403988106,0.5131936,83867.0,83866.0,0.183035]
[1744403989710,0.3608,83867.0,83866.0,0.183035]
[1744403990516,0.4800936,83867.0,83866.0,0.183035]
[1744403993017,0.1192936,83867.0,83866.0,0.183035]
[1744403997713,0.0903454,83869.0,83868.0,0.1192922]
[1744403998418,0.0903454,83869.0,83868.0,0.1505922]
[1744403999115,0.0307,83869.0,83868.0,0.1816922]
[1744403999321,0.3608,83870.0,83869.0,0.1192907]
[1744403999522,0.3608,83870.0,83869.0,0.2120907]
[1744403999924,0.1192889,83871.0,83870.0,0.1192893]
[1744404000222,0.5101889,83871.0,83870.0,0.1505893]
[1744404003720,0.5101889,83871.0,83870.0,0.1192893]
[1744404003923,0.5419889,83871.0,83870.0,0.1192893]
[1744404004116,0.5419889,83871.0,83870.0,0.1500893]
[1744404012130,0.5419889,83871.0,83870.0,0.1192893]
[1744404012628,0.5419889,83871.0,83870.0,0.1525893]
[1744404013030,0.64879045,83871.0,83870.0,0.1525893]
[1744404015535,0.5419889,83871.0,83870.0,0.1525893]
[1744404016833,0.1811889,83871.0,83870.0,0.1525893]
[1744404017133,0.5419889,83871.0,83870.0,0.1525893]
[1744404019631,0.1811889,83871.0,83870.0,0.1525893]
[1744404019833,0.5746889,83871.0,83870.0,0.1525893]
[1744404020032,0.4236,83871.0,83870.0,0.1525893]
[1744404020332,0.4236,83871.0,83870.0,0.2164893]
[1744404020533,0.5428879,83871.0,83870.0,0.2164893]
[1744404022134,0.5428879,83871.0,83870.0,0.1841893]
[1744404025328,0.1820879,83871.0,83870.0,0.1841893]
[1744404025529,0.5428879,83871.0,83870.0,0.1841893]
[1744404030244,0.4236,83871.0,83870.0,0.1841893]
[1744404030539,0.3608,83871.0,83870.0,0.1841893]
[1744404030843,0.3608,83871.0,83870.0,0.2149893]
[1744404034239,0.14240206,83876.0,83875.0,0.1192822]
[1744404034645,0.14240206,83876.0,83875.0,0.1825822]
[1744404035648,0.26168286,83876.0,83875.0,0.1825822]
[1744404036141,0.14240206,83876.0,83875.0,0.1825822]
[1744404036339,0.3608,83877.0,83875.0,0.0633]
[1744404036548,0.4800794,83877.0,83876.0,0.1192808]
[1744404037055,0.4800794,83877.0,83876.0,0.1826808]
[1744404037254,0.5107794,83877.0,83876.0,0.1826808]
[1744404038055,0.3915,83877.0,83876.0,0.1826808]
[1744404038257,0.5107794,83877.0,83876.0,0.1826808]
[1744404039260,0.1499794,83877.0,83876.0,0.1826808]
[1744404039658,0.1800794,83877.0,83876.0,0.1826808]
[1744404040151,0.0608,83877.0,83876.0,0.1826808]
[1744404041459,0.1800794,83877.0,83876.0,0.1826808]
[1744404042364,0.0608,83877.0,83876.0,0.1826808]
[1744404044364,0.0307,83877.0,83876.0,0.1826808]
[1744404044863,0.0612,83877.0,83876.0,0.1826808]
[1744404045366,0.10742892,83881.0,83880.0,0.1192751]
[1744404045865,0.10742892,83881.0,83880.0,0.2142751]
[1744404048257,0.14240206,83886.0,83885.0,0.119268]
[1744404048456,0.14240206,83886.0,83885.0,0.534568]
[1744404048858,0.14240206,83886.0,83885.0,0.594868]
[1744404049765,0.11216291,83888.0,83887.0,0.1192652]
[1744404050064,0.11216291,83888.0,83887.0,0.5440652]
[1744404052760,0.11216291,83888.0,83887.0,0.9593652]
[1744404053658,0.11216291,83888.0,83887.0,0.5985652]
[1744404053965,0.11216291,83888.0,83887.0,0.9593652]
[1744404054871,0.005,83888.0,83887.0,0.9593652]
[1744404055876,0.005,83888.0,83887.0,1.0360052]
[1744404057271,0.005,83888.0,83887.0,0.6422052]
[1744404065473,0.005,83888.0,83887.0,0.5655652]
[1744404067574,0.005,83888.0,83887.0,0.5345652]
[1744404067771,0.4850637,83888.0,83887.0,0.5345652]
[1744404068273,0.4277,83888.0,83887.0,0.5345652]
[1744404068668,0.5469637,83888.0,83887.0,0.5345652]
[1744404069775,0.1192765,83879.0,83878.0,0.28567527]
[1744404069975,0.4800765,83879.0,83878.0,0.40495207]
[1744404071377,0.5421765,83879.0,83878.0,0.40495207]
[1744404072878,0.5421765,83879.0,83878.0,0.1192768]
[1744404080679,0.4229,83879.0,83878.0,0.1192768]
[1744404081186,0.4229,83879.0,83878.0,0.1501768]
[1744404081386,0.0316,83879.0,83878.0,0.1501768]
[1744404081683,0.3658,83888.0,83887.0,0.1192652]
[1744404082081,0.3658,83888.0,83887.0,0.2137652]
[1744404082479,0.005,83888.0,83887.0,0.2137652]
[1744404082885,0.00017882,83894.0,83891.0,0.1192595]
[1744404083280,0.00017882,83894.0,83891.0,0.5425595]
[1744404083476,0.14258088,83894.0,83893.0,0.1192566]
[1744404083676,0.14258088,83894.0,83893.0,0.1817566]
[1744404087594,0.00017882,83894.0,83893.0,0.1817566]
[1744404088490,0.00017882,83894.0,83893.0,0.5425566]
[1744404090092,0.00017882,83894.0,83893.0,0.5516169]
[1744404091188,0.00017882,83894.0,83893.0,0.1908169]
[1744404093894,0.00017882,83894.0,83893.0,0.1592169]
[1744404094688,0.03197882,83894.0,83893.0,0.1592169]
[1744404100595,0.03197882,83894.0,83893.0,0.1908169]
[1744404103793,0.03197882,83894.0,83893.0,0.1592169]
[1744404105305,0.00046,83900.0,83899.0,0.1192481]
[1744404105499,0.0329,83907.0,83906.0,0.1192381]
[1744404105699,0.0326,83913.0,83912.0,0.1192296]
[1744404105904,0.0655,83913.0,83912.0,0.1192296]
[1744404106101,0.0655,83913.0,83912.0,0.1502296]
[1744404109396,0.0655,83913.0,83912.0,0.16235334]
[1744404114015,0.0329,83913.0,83912.0,0.16235334]
[1744404114510,0.0329,83913.0,83912.0,0.19375334]
[1744404114713,0.065,83913.0,83912.0,0.16235334]
[1744404115914,0.4258,83913.0,83912.0,0.16235334]
[1744404116115,0.4258,83913.0,83912.0,0.13135334]
[1744404116405,0.1192296,83912.0,83911.0,0.07656]
[1744404116611,0.119231,83911.0,83910.0,0.21372825]
[1744404116801,0.182631,83911.0,83910.0,0.21372825]
[1744404118219,0.182631,83911.0,83910.0,0.33296075]
[1744404118720,0.182631,83911.0,83910.0,0.1192325]
[1744404127326,0.1192396,83905.0,83904.0,0.17903762]
[1744404127530,0.4800396,83905.0,83904.0,0.17903762]
[1744404127728,0.5751396,83905.0,83904.0,0.00017882]
[1744404133642,0.1192538,83895.0,83894.0,0.21372825]
[1744404133838,0.4800538,83895.0,83894.0,0.21372825]
[1744404134141,0.6183138,83895.0,83894.0,0.21372825]
[1744404134637,0.1192652,83887.0,83886.0,0.00017882]
[1744404134830,0.4800652,83887.0,83886.0,0.00017882]
[1744404135031,0.5417652,83887.0,83886.0,0.00017882]
[1744404136145,0.5417652,83887.0,83886.0,0.11944542]
[1744404136534,0.5417652,83887.0,83886.0,0.15204542]
[1744404139850,0.3911,83887.0,83886.0,0.15204542]
[1744404140048,0.5103652,83887.0,83886.0,0.21444542]
[1744404140745,0.5103652,83887.0,83886.0,0.18424542]
[1744404141549,0.5103652,83887.0,83886.0,0.21614542]
[1744404141745,0.5429652,83887.0,83886.0,0.21614542]
[1744404144745,0.5429652,83887.0,83886.0,0.18424542]
[1744404147451,0.5103652,83887.0,83886.0,0.18424542]
[1744404147748,0.5103652,83887.0,83886.0,0.21464542]
[1744404150253,0.4800652,83887.0,83886.0,0.21464542]
[1744404150649,0.1192652,83887.0,83886.0,0.21464542]
[1744404152346,0.4800652,83887.0,83886.0,0.21464542]
[1744404160359,0.5110652,83887.0,83886.0,0.21464542]
[1744404161752,0.5411652,83887.0,83886.0,0.21464542]
[1744404163460,0.5110652,83887.0,83886.0,0.21464542]
[1744404163863,0.3608,83887.0,83886.0,0.21464542]
[1744404164053,0.26165866,83893.0,83892.0,0.119258]
[1744404164451,0.26165866,83893.0,83892.0,0.183858]
[1744404165560,0.29255866,83893.0,83892.0,0.183858]
[1744404165761,0.32465866,83893.0,83892.0,0.183858]
[1744404167164,0.1822566,83893.0,83892.0,0.183858]
[1744404169869,0.9038566,83893.0,83892.0,0.183858]
[1744404170463,0.5430566,83893.0,83892.0,0.183858]
[1744404176772,0.5430566,83893.0,83892.0,0.151158]
[1744404183877,0.3917,83893.0,83892.0,0.151158]
[1744404184073,0.3917,83893.0,83892.0,0.183358]
[1744404184470,0.5109447,83893.0,83892.0,0.183358]
[1744404185474,0.3917,83893.0,83892.0,0.183358]
[1744404185873,2e-08,83895.0,83894.0,0.1192433]